[Event "Campeonato de España Universitario Relámpago"]
[Site "Zaragoza, Spain"]
[Date "2024.04.24"]
[Round "7.4"]
[White "Quispe Arteaga, Gabriel"]
[Black "Bringas Gomez, Artai"]
[Result "1-0"]
[TimeControl "3 min + 2 sg"]
[WhiteFideId "32059809"]
[BlackFideId "24534064"]
[WhiteElo "2304"]
[BlackElo "2179"]

1. c4 {[%clk 00:03:03]} {[%emt 00:00:01]} e5 {[%clk 00:03:03]} {[%emt
00:00:01]} 2. g3 {[%clk 00:03:01]} {[%emt 00:00:04]} Nf6 {[%clk 00:03:04]}
{[%emt 00:00:01]} 3. Bg2 {[%clk 00:03:02]} {[%emt 00:00:01]} Bc5 {[%clk
00:03:05]} {[%emt 00:00:01]} 4. Nc3 {[%emt 00:00:01]} c6 5. Na4 {[%clk
00:03:04]} {[%emt 00:00:01]} Be7 {[%clk 00:03:05]} {[%emt 00:00:03]} 6. Nf3
{[%clk 00:03:04]} {[%emt 00:00:02]} e4 {[%clk 00:03:05]} {[%emt 00:00:02]} 7.
Nd4 {[%clk 00:03:05]} {[%emt 00:00:01]} d5 {[%clk 00:03:04]} {[%emt 00:00:03]}
8. cxd5 {[%clk 00:03:02]} {[%emt 00:00:05]} cxd5 {[%clk 00:02:53]} {[%emt
00:00:13]} 9. O-O {[%clk 00:03:00]} {[%emt 00:00:04]} O-O {[%clk 00:02:53]}
{[%emt 00:00:02]} 10. d3 {[%clk 00:02:58]} {[%emt 00:00:03]} Nc6 {[%clk
00:02:39]} {[%emt 00:00:16]} 11. Nxc6 {[%clk 00:02:43]} {[%emt 00:00:18]} bxc6
{[%clk 00:02:39]} 12. Be3 {[%clk 00:02:41]} {[%emt 00:00:04]} Ng4 {[%clk
00:02:29]} {[%emt 00:00:12]} 13. dxe4 {[%clk 00:02:34]} {[%emt 00:00:09]} Nxe3
{[%clk 00:02:30]} {[%emt 00:00:01]} 14. fxe3 {[%clk 00:02:35]} Bg5 {[%clk
00:02:27]} {[%emt 00:00:05]} 15. exd5 {[%clk 00:02:32]} {[%emt 00:00:06]} Bxe3+
{[%clk 00:02:27]} {[%emt 00:00:02]} 16. Kh1 {[%clk 00:02:33]} {[%emt 00:00:01]}
c5 {[%clk 00:02:09]} {[%emt 00:00:20]} 17. Qd3 {[%clk 00:02:14]} {[%emt
00:00:20]} Re8 {[%clk 00:01:41]} {[%emt 00:00:31]} 18. Rf3 {[%clk 00:01:56]}
{[%emt 00:00:20]} Bd4 {[%clk 00:01:34]} {[%emt 00:00:08]} 19. e3 {[%clk
00:01:56]} {[%emt 00:00:02]} Bf6 {[%clk 00:01:35]} {[%emt 00:00:01]} 20. Nxc5
{[%clk 00:01:54]} {[%emt 00:00:05]} Rb8 {[%clk 00:01:25]} {[%emt 00:00:11]} 21.
Ne4 {[%emt 00:00:25]} Be5 22. Raf1 {[%clk 00:01:26]} {[%emt 00:00:05]} f6
{[%clk 00:01:28]} {[%emt 00:00:01]} 23. b3 {[%clk 00:01:18]} {[%emt 00:00:10]}
Bb7 {[%clk 00:01:29]} {[%emt 00:00:01]} 24. Rd1 {[%clk 00:01:15]} {[%emt
00:00:05]} Qa5 {[%clk 00:01:23]} {[%emt 00:00:09]} 25. Qd2 {[%clk 00:00:48]}
{[%emt 00:00:29]} Qxd2 {[%clk 00:01:04]} {[%emt 00:00:21]} 26. Rxd2 {[%clk
00:00:36]} {[%emt 00:00:14]} Rbd8 {[%clk 00:01:05]} 27. Rf1 {[%emt 00:00:11]}
Bxd5 {[%clk 00:00:34]} {[%emt 00:00:33]} 28. Rxd5 {[%clk 00:00:30]} {[%emt
00:00:01]} Rxd5 {[%clk 00:00:35]} 29. Nxf6+ {[%clk 00:00:30]} Bxf6 {[%clk
00:00:37]} 30. Bxd5+ {[%clk 00:00:32]} Kf8 {[%clk 00:00:38]} 31. e4 {[%clk
00:00:33]} Ke7 {[%clk 00:00:35]} {[%emt 00:00:05]} 32. Rc1 {[%clk 00:00:34]}
Be5 {[%clk 00:00:36]} 33. Rc6 {[%clk 00:00:35]} {[%emt 00:00:01]} Bd6 {[%clk
00:00:32]} {[%emt 00:00:06]} 34. Kg2 {[%clk 00:00:33]} {[%emt 00:00:04]} Rd8
{[%clk 00:00:29]} {[%emt 00:00:06]} 35. Kf3 {[%clk 00:00:31]} {[%emt 00:00:04]}
Kf6 {[%clk 00:00:20]} {[%emt 00:00:10]} 36. Ra6 {[%clk 00:00:27]} {[%emt
00:00:07]} Rd7 {[%clk 00:00:22]} 37. Bc4 {[%clk 00:00:24]} {[%emt 00:00:05]}
Ke5 {[%clk 00:00:16]} {[%emt 00:00:07]} 38. Ra5+ {[%clk 00:00:25]} Kf6 {[%clk
00:00:16]} {[%emt 00:00:02]} 39. Rf5+ {[%clk 00:00:25]} {[%emt 00:00:02]} Kg6
{[%clk 00:00:13]} {[%emt 00:00:05]} 40. Rd5 {[%clk 00:00:22]} {[%emt 00:00:05]}
Rd8 {[%clk 00:00:15]} 41. e5 {[%clk 00:00:19]} {[%emt 00:00:04]} Rf8+ {[%clk
00:00:16]} 42. Ke4 {[%clk 00:00:20]} {[%emt 00:00:01]} Bb4 {[%clk 00:00:12]}
{[%emt 00:00:06]} 43. Rd7 {[%clk 00:00:20]} {[%emt 00:00:02]} a5 {[%clk
00:00:13]} {[%emt 00:00:01]} 44. Bd3 {[%clk 00:00:16]} {[%emt 00:00:06]} Kh6
{[%clk 00:00:12]} {[%emt 00:00:03]} 45. e6 {[%clk 00:00:11]} {[%emt 00:00:07]}
Kg5 {[%clk 00:00:06]} {[%emt 00:00:07]} 46. Kd5 {[%clk 00:00:10]} {[%emt
00:00:04]} Kf6 {[%clk 00:00:06]} {[%emt 00:00:02]} 47. Bxh7 {[%clk 00:00:09]}
{[%emt 00:00:03]} Rh8 {[%clk 00:00:07]} 48. Rf7+ {[%clk 00:00:10]} Kg5 {[%clk
00:00:07]} {[%emt 00:00:02]} 49. h4 {[%clk 00:00:11]} Kg4 {[%clk 00:00:08]}
{[%emt 00:00:02]} 50. Rxg7+ {[%clk 00:00:12]} {[%emt 00:00:01]} Kf3 {[%clk
00:00:08]} {[%emt 00:00:02]} 51. Be4+ {[%clk 00:00:13]} {[%emt 00:00:01]} Ke3
{[%clk 00:00:09]} 52. e7 {[%clk 00:00:15]} Re8 {[%clk 00:00:09]} {[%emt
00:00:02]} 53. Bg6 {[%clk 00:00:16]} Rxe7 {[%clk 00:00:10]} 54. Rxe7+ {[%clk
00:00:17]} {[%emt 00:00:01]} Bxe7 {[%clk 00:00:12]} 55. Ke6 {[%clk 00:00:15]}
{[%emt 00:00:04]} Bf8 {[%clk 00:00:11]} {[%emt 00:00:02]} 56. Kf5 {[%clk
00:00:13]} {[%emt 00:00:04]} Kf3 {[%clk 00:00:07]} {[%emt 00:00:06]} 57. g4
{[%clk 00:00:14]} Kg3 {[%clk 00:00:08]} 58. h5 {[%clk 00:00:15]} Kh4 {[%clk
00:00:07]} {[%emt 00:00:04]} 59. g5 {[%clk 00:00:14]} {[%emt 00:00:03]} Be7
{[%clk 00:00:07]} {[%emt 00:00:02]} 60. h6 {[%clk 00:00:15]} Bb4 {[%clk
00:00:08]} {[%emt 00:00:01]} 61. Bf7 {[%clk 00:00:15]} {[%emt 00:00:02]} Bd2
{[%clk 00:00:09]} {[%emt 00:00:02]} 62. h7 {[%clk 00:00:15]} {[%emt 00:00:02]}
Bc3 {[%clk 00:00:10]} 63. a3 {[%clk 00:00:15]} {[%emt 00:00:02]} Bb2 {[%clk
00:00:06]} {[%emt 00:00:05]} 64. b4 {[%clk 00:00:16]} a4 {[%clk 00:00:04]}
{[%emt 00:00:04]} 65. b5 {[%clk 00:00:18]} {[%emt 00:00:01]} Bd4 {[%clk
00:00:05]} {[%emt 00:00:01]} 66. b6 {[%clk 00:00:19]} {[%emt 00:00:01]} Bc3
{[%clk 00:00:04]} {[%emt 00:00:02]} 67. b7 {[%clk 00:00:19]} {[%emt 00:00:01]}
Bd4 {[%clk 00:00:05]} 68. b8=Q {[%clk 00:00:19]} {[%emt 00:00:03]} Kh3 {[%clk
00:00:05]} {[%emt 00:00:03]} 69. Ke4 {[%clk 00:00:18]} {[%emt 00:00:02]} Bf2
{[%clk 00:00:05]} {[%emt 00:00:02]} 70. Kf3 {[%clk 00:00:19]} Kh4 {[%clk
00:00:05]} {[%emt 00:00:02]} 71. Qh2+ {[%clk 00:00:19]} {[%emt 00:00:02]} Kxg5
{[%clk 00:00:06]} {[%emt 00:00:02]} 72. Kxf2 {[%clk 00:00:17]} {[%emt
00:00:04]} Kf6 {[%clk 00:00:04]} {[%emt 00:00:03]} 73. Qf4+ {[%clk 00:00:17]}
{[%emt 00:00:02]} Kg7 {[%emt 00:00:03]} 74. Qxa4 {[%clk 00:00:17]} Kh8 {[%clk
00:00:05]} {[%emt 00:00:01]} 75. Qb4 {[%clk 00:00:18]} {[%emt 00:00:02]} Kg7
{[%clk 00:00:06]} {[%emt 00:00:01]} 76. a4 {[%clk 00:00:19]} Kh8 {[%clk
00:00:07]} 77. a5 {[%clk 00:00:20]} Kg7 {[%clk 00:00:08]} {[%emt 00:00:02]} 78.
a6 {[%clk 00:00:22]} Kh6 {[%clk 00:00:07]} {[%emt 00:00:02]} 79. h8=R+ {[%clk
00:00:19]} {[%emt 00:00:05]} Kg7 {[%clk 00:00:09]} {[%emt 00:00:01]} 80. Qd4+
{[%clk 00:00:19]} {[%emt 00:00:01]} Kxf7 {[%clk 00:00:10]} {[%emt 00:00:02]} 81.
a7 {[%clk 00:00:20]} Kg6 {[%clk 00:00:11]} 82. a8=R {[%clk 00:00:20]} {[%emt
00:00:03]} Kf5 {[%clk 00:00:12]} 83. Raf8+ {[%clk 00:00:19]} {[%emt 00:00:03]}
Kg6 {[%clk 00:00:12]} {[%emt 00:00:02]} 84. Qg4# {[%emt 00:00:01]} 1-0

[Event "Campeonato de España Universitario Relámpago"]
[Site "Zaragoza, Spain"]
[Date "2024.04.24"]
[Round "7.5"]
[White "Garcia Escoda, Marc"]
[Black "Quintin Navarro, Alberto"]
[Result "0-1"]
[TimeControl "3 min + 2 sg"]
[WhiteFideId "24509655"]
[BlackFideId "2292688"]
[WhiteElo "2062"]
[BlackElo "2289"]

1. Nf3 {[%clk 00:03:02]} {[%emt 00:00:01]} d5 {[%clk 00:03:04]} {[%emt
00:00:01]} 2. g3 c6 3. Bg2 {[%clk 00:03:04]} Bg4 {[%clk 00:03:06]} {[%emt
00:00:01]} 4. O-O {[%clk 00:03:03]} {[%emt 00:00:02]} Nd7 {[%clk 00:03:07]} 5.
d4 {[%clk 00:03:05]} e6 {[%clk 00:03:08]} {[%emt 00:00:03]} 6. h3 {[%clk
00:02:56]} {[%emt 00:00:10]} Bh5 {[%clk 00:03:08]} {[%emt 00:00:02]} 7. c4
{[%clk 00:02:50]} {[%emt 00:00:08]} Ngf6 {[%clk 00:03:04]} {[%emt 00:00:07]} 8.
Nc3 {[%clk 00:02:49]} {[%emt 00:00:03]} Be7 {[%clk 00:03:00]} {[%emt 00:00:05]}
9. b3 {[%clk 00:02:33]} {[%emt 00:00:18]} O-O {[%clk 00:03:00]} {[%emt
00:00:02]} 10. Bb2 {[%clk 00:02:33]} {[%emt 00:00:01]} h6 {[%clk 00:02:59]}
{[%emt 00:00:03]} 11. Qd2 {[%clk 00:02:06]} {[%emt 00:00:30]} Bg6 {[%clk
00:02:59]} {[%emt 00:00:02]} 12. Rad1 {[%clk 00:02:00]} {[%emt 00:00:08]} Ne4
{[%clk 00:02:51]} {[%emt 00:00:10]} 13. Nxe4 {[%clk 00:01:29]} {[%emt
00:00:33]} Bxe4 {[%clk 00:02:52]} {[%emt 00:00:01]} 14. Qc3 {[%clk 00:01:26]}
{[%emt 00:00:05]} a5 {[%clk 00:02:44]} {[%emt 00:00:10]} 15. Nd2 {[%clk
00:01:25]} {[%emt 00:00:03]} Bb4 {[%clk 00:02:39]} {[%emt 00:00:07]} 16. Qc1
{[%clk 00:01:06]} {[%emt 00:00:21]} Bxg2 {[%clk 00:02:38]} {[%emt 00:00:03]} 17.
Kxg2 {[%clk 00:01:07]} a4 {[%clk 00:02:38]} {[%emt 00:00:04]} 18. Qc2 {[%clk
00:01:01]} {[%emt 00:00:08]} axb3 {[%clk 00:02:12]} {[%emt 00:00:28]} 19. axb3
{[%clk 00:01:02]} Qb6 {[%clk 00:02:06]} {[%emt 00:00:09]} 20. Bc3 {[%clk
00:00:51]} {[%emt 00:00:14]} Nf6 {[%clk 00:01:48]} {[%emt 00:00:19]} 21. f3
{[%clk 00:00:38]} {[%emt 00:00:15]} Rfd8 {[%clk 00:01:14]} {[%emt 00:00:36]} 22.
c5 {[%clk 00:00:16]} {[%emt 00:00:25]} Qb5 {[%clk 00:01:13]} {[%emt 00:00:02]}
23. Rfe1 {[%clk 00:00:08]} {[%emt 00:00:10]} Bxc3 {[%clk 00:01:08]} {[%emt
00:00:07]} 24. Qxc3 {[%clk 00:00:09]} Ra2 {[%clk 00:01:06]} {[%emt 00:00:04]}
25. Ra1 {[%clk 00:00:07]} {[%emt 00:00:05]} Rda8 {[%clk 00:01:01]} {[%emt
00:00:07]} 26. Kf2 {[%clk 00:00:08]} Qa6 {[%clk 00:00:35]} {[%emt 00:00:27]} 27.
Rxa2 {[%clk 00:00:08]} {[%emt 00:00:03]} Qxa2 {[%clk 00:00:36]} 28. Nf1 {[%clk
00:00:04]} {[%emt 00:00:06]} Ra3 {[%clk 00:00:31]} {[%emt 00:00:07]} 29. Nd2
{[%clk 00:00:05]} Ra7 {[%clk 00:00:20]} {[%emt 00:00:13]} 30. Ke3 {[%clk
00:00:05]} {[%emt 00:00:03]} Ne8 {[%clk 00:00:19]} {[%emt 00:00:03]} 31. Qb4
{[%clk 00:00:05]} {[%emt 00:00:02]} Qa6 {[%clk 00:00:12]} {[%emt 00:00:08]} 32.
Nb1 {[%clk 00:00:05]} {[%emt 00:00:02]} Qa1 {[%clk 00:00:07]} {[%emt 00:00:08]}
33. Qd2 {[%clk 00:00:04]} {[%emt 00:00:03]} Nc7 {[%clk 00:00:06]} {[%emt
00:00:03]} 34. Nc3 {[%clk 00:00:05]} {[%emt 00:00:01]} Qa3 {[%clk 00:00:06]}
{[%emt 00:00:01]} 35. Qc2 {[%clk 00:00:04]} {[%emt 00:00:03]} Qb4 {[%clk
00:00:07]} 36. Rb1 {[%clk 00:00:04]} {[%emt 00:00:02]} Ra3 {[%clk 00:00:06]}
{[%emt 00:00:03]} 37. Na4 {[%clk 00:00:04]} {[%emt 00:00:03]} Nb5 {[%clk
00:00:05]} {[%emt 00:00:03]} 38. Qd3 {[%clk 00:00:03]} {[%emt 00:00:03]} g6
{[%clk 00:00:04]} {[%emt 00:00:02]} 39. Nb6 {[%clk 00:00:03]} {[%emt 00:00:02]}
Ra2 {[%clk 00:00:05]} {[%emt 00:00:02]} 40. Nd7 {[%clk 00:00:04]} {[%emt
00:00:01]} Nc3 {[%clk 00:00:04]} {[%emt 00:00:02]} 41. Rc1 {[%clk 00:00:03]}
{[%emt 00:00:03]} Rxe2+ {[%clk 00:00:05]} {[%emt 00:00:02]} 42. Kf4 {[%clk
00:00:04]} {[%emt 00:00:01]} Na2 {[%clk 00:00:06]} 43. Ra1 {[%clk 00:00:03]}
{[%emt 00:00:02]} Rd2 {[%clk 00:00:06]} {[%emt 00:00:02]} 44. Qb1 {[%clk
00:00:04]} {[%emt 00:00:01]} Qxd4+ {[%clk 00:00:06]} {[%emt 00:00:02]} 45. Qd3
{[%emt 00:00:22]} Re2+ 46. Rc1 {[%emt 00:00:01]} Qb4+ 47. Ke4 0-1

[ePGN "0.1;DGT LiveChess/2.2.6"]